bitfinex/quotes_ETHUSD_20241122
["timestamp","ask_amount","ask_price","bid_price","bid_amount"]
[1732286309767,0.7764,3286.5,3285.3,3.0]
[1732286309982,0.0380402,3286.4,3285.3,3.0]
[1732286310264,0.7764,3286.5,3285.8,3.0]
[1732286310465,0.7764,3286.5,3286.3,3.0]
[1732286310965,0.7764,3286.5,3286.2,3.9238813]
[1732286310966,0.7764,3286.5,3285.8,3.0]
[1732286311478,0.7864,3287.2,3285.8,3.0]
[1732286311770,0.04663229,3287.1,3285.8,3.0]
[1732286313170,0.00860005,3286.7,3285.8,3.0]
[1732286313373,0.7783,3286.6,3285.8,3.0]
[1732286314468,0.789,3287.1,3286.3,3.0]
[1732286314977,0.789,3287.1,3286.8,3.0]
[1732286315131,0.828,3288.0,3286.8,3.0]
[1732286315335,0.86602407,3288.0,3286.8,3.0]
[1732286316442,0.00860005,3287.6,3286.8,3.0]
[1732286316638,0.00860005,3287.2,3286.3,3.0]
[1732286316843,0.7541,3287.1,3286.3,3.0]
[1732286317042,0.04663367,3287.0,3286.3,3.0]
[1732286317344,0.04663367,3287.0,3284.7,0.3016]
[1732286317345,0.00860005,3286.8,3285.7,3.9238813]
[1732286317647,0.7616,3286.5,3285.7,3.9238813]
[1732286317860,0.03804007,3286.4,3285.7,3.9238813]
[1732286318781,0.7616,3286.5,3285.7,3.9238813]
[1732286318782,0.7616,3286.5,3285.8,3.0]
[1732286319947,0.03803624,3286.9,3286.2,3.9238813]
[1732286320148,4.7769,3287.0,3286.3,3.0]
[1732286320497,4.7769,3287.0,3286.4,0.3016]
[1732286321546,0.04663095,3286.9,3286.5,0.3016]
[1732286321751,5.25459,3287.0,3286.5,0.3016]
[1732286321990,4.7769,3287.0,3286.5,0.3016]
[1732286322346,0.03802947,3286.9,3286.5,0.3016]
[1732286322693,0.04662952,3286.9,3285.8,0.3016]
[1732286322851,0.04662952,3286.9,3285.8,3.3016]
[1732286323056,0.00860005,3286.7,3285.8,0.3016]
[1732286323254,0.8197,3286.6,3285.8,0.3016]
[1732286323453,0.0380393,3286.5,3285.8,0.3016]
[1732286323656,0.0380393,3286.5,3285.9,0.3016]
[1732286323976,0.8197,3286.6,3285.9,0.3016]
[1732286324152,0.03803575,3286.5,3285.9,0.3016]
[1732286324350,0.8197,3286.6,3285.9,0.3016]
[1732286324907,3.9936,3287.0,3286.3,3.3016]
[1732286325462,0.04662886,3286.9,3285.8,3.0]
[1732286325662,0.52219886,3286.9,3285.8,3.0]
[1732286325892,0.00860005,3286.7,3285.8,3.0]
[1732286326056,0.04663752,3286.7,3285.2,3.9238813]
[1732286326260,0.78,3286.6,3285.3,3.39238813]
[1732286326594,0.78,3286.6,3285.8,3.0]
[1732286327004,0.78,3286.6,3286.2,3.9238813]
[1732286327159,3.9936,3287.0,3286.2,3.9238813]
[1732286327160,4.7828,3287.0,3286.3,3.0]
[1732286327684,0.03803116,3286.9,3285.8,3.0]
[1732286328272,0.00860005,3286.9,3285.8,3.0]
[1732286329593,0.03803591,3286.8,3285.8,3.0]
[1732286329798,0.04663677,3286.9,3285.8,3.0]
[1732286330002,0.57470477,3286.9,3285.8,3.0]
[1732286331598,0.00860005,3286.7,3285.3,0.55]
[1732286331806,0.00860005,3286.7,3285.4,0.44738813]
[1732286332308,0.00860005,3286.7,3285.7,3.9238813]
[1732286332942,0.04663748,3286.7,3285.9,3.0]
[1732286333208,0.00860005,3286.5,3285.9,3.0]
[1732286333408,0.04664026,3286.5,3285.9,3.0]
[1732286333774,0.00860005,3286.5,3285.9,3.0]
[1732286334611,0.79834021,3286.6,3285.9,3.0]
[1732286334911,0.7603,3286.6,3286.3,3.0]
[1732286335609,0.7603,3286.6,3286.0,0.3016]
[1732286337411,3.9936,3287.0,3286.3,3.3016]
[1732286337613,0.7766,3287.7,3286.9,3.3016]
[1732286337818,0.7766,3287.7,3287.5,0.3016]
[1732286338028,0.7766,3287.7,3287.5,3.3016]
[1732286338517,0.78520005,3287.7,3287.1,3.3016]
[1732286338730,0.03802662,3287.6,3287.1,3.3016]
[1732286339284,0.78520005,3287.7,3287.1,3.3016]
[1732286339731,0.03802663,3287.6,3287.1,3.3016]
[1732286340223,0.78520005,3287.7,3287.1,3.3016]
[1732286340449,0.7766,3287.7,3287.1,3.0]
[1732286340607,0.00860005,3288.1,3287.5,3.0]
[1732286341121,0.00860005,3287.8,3286.2,0.1167]
[1732286341324,0.00860005,3287.8,3286.8,3.0]
[1732286341529,0.00860005,3288.0,3287.2,3.0]
[1732286341706,0.00860005,3288.2,3287.6,3.0]
[1732286341910,0.00860005,3288.6,3287.9,3.40609671]
[1732286342117,0.01,3287.9,3286.3,0.36322]
[1732286342335,0.78310005,3287.8,3287.1,3.0]
[1732286342644,0.7745,3288.4,3287.5,3.0]
[1732286342927,0.7745,3289.1,3288.5,3.0]
[1732286343113,0.7745,3289.1,3288.8,3.40609671]
[1732286343315,0.7745,3289.1,3288.5,3.0]
[1732286343316,0.78310005,3289.1,3288.5,3.0]
[1732286343624,0.03800544,3289.0,3288.4,3.0]
[1732286343932,0.00860005,3288.8,3288.0,3.0]
[1732286344103,0.8021,3288.5,3287.6,3.0]
[1732286344306,0.00860005,3288.2,3287.6,3.0]
[1732286344640,0.00860005,3288.0,3287.2,3.0]
[1732286344817,0.00860005,3287.8,3287.2,3.0]
[1732286345024,0.8115,3287.7,3287.2,3.64060967]
[1732286345406,0.8115,3288.1,3287.5,3.40609671]
[1732286345590,0.8115,3288.8,3288.0,3.0]
[1732286345790,0.8115,3288.8,3288.4,3.0]
[1732286346332,0.8033,3289.2,3288.7,3.40609671]
[1732286346893,0.8033,3289.2,3288.4,0.3]
[1732286347099,0.8033,3289.2,3288.4,3.3]
[1732286347403,0.80480005,3288.6,3287.5,3.0]
[1732286347834,0.7962,3288.6,3287.9,3.0]
[1732286348220,0.7962,3288.6,3287.5,0.37076967]
[1732286348221,0.7962,3288.6,3288.4,3.0]
[1732286348599,0.8174,3289.0,3288.4,3.0]
[1732286349234,0.7809,3289.4,3288.8,3.0]
[1732286349610,0.01,3289.5,3289.1,3.40609671]
[1732286349810,0.01,3289.5,3288.8,3.0]
[1732286350130,0.01,3289.5,3288.8,3.60137726]
[1732286350495,0.8061,3289.8,3288.8,3.60137726]
[1732286350696,0.01,3289.6,3288.8,3.60137726]
[1732286350935,0.8061,3289.8,3289.2,3.0]
[1732286351139,0.7597,3290.2,3289.6,3.0]
[1732286351308,0.7597,3290.2,3289.7,0.64060967]
[1732286351686,0.01,3290.5,3289.7,0.64060967]
[1732286351687,0.01,3290.5,3289.9,3.40609671]
[1732286351793,0.7597,3290.6,3290.0,3.0]
[1732286352445,0.01,3290.3,3289.6,3.0]
[1732286352610,0.75910005,3290.0,3288.8,3.0]
[1732286352811,0.75910005,3290.0,3287.4,0.3016]
[1732286352812,0.7505,3290.0,3289.2,3.0]
[1732286353111,0.01,3289.6,3288.7,3.40609671]
[1732286353326,0.01860005,3289.1,3288.3,3.40609671]
[1732286353516,0.7505,3289.2,3288.3,3.40609671]
[1732286353900,0.05660462,3289.1,3287.9,3.40609671]
[1732286354328,0.01860005,3288.5,3287.5,3.40609671]
[1732286354636,0.7737,3288.4,3287.5,3.40609671]
[1732286354932,0.7737,3288.4,3286.8,0.3031]
[1732286354933,0.00860005,3288.1,3287.1,3.40609671]
[1732286355137,0.00860005,3288.1,3287.1,3.74670638]
[1732286355642,0.00860005,3287.8,3286.7,3.40609671]
[1732286355933,0.01,3288.2,3286.7,3.40609671]
[1732286355934,0.00860005,3287.6,3286.7,3.40609671]
[1732286356108,0.01,3287.5,3286.7,3.40609671]
[1732286356437,0.01860005,3287.5,3286.3,3.40609671]
[1732286356636,0.84790005,3287.7,3286.7,3.40609671]
[1732286356844,0.01,3287.5,3286.7,3.40609671]
[1732286357546,0.84790005,3287.7,3286.7,3.40609671]
[1732286357737,0.01,3287.5,3286.7,3.40609671]
[1732286357932,0.01,3287.5,3286.7,3.74670638]
[1732286358539,0.01,3287.5,3286.8,3.0]
[1732286358846,0.01,3287.5,3286.3,3.40609671]
[1732286359008,0.00860005,3287.1,3286.4,3.0]
[1732286359243,0.01,3287.0,3286.3,3.40609671]
[1732286359440,0.01,3287.6,3286.7,3.40609671]
[1732286359693,0.00860005,3287.5,3286.3,3.74670638]
[1732286359852,0.01,3287.0,3286.3,3.40609671]
[1732286360056,0.00860005,3287.1,3286.3,3.40609671]
[1732286360255,0.01860005,3287.3,3286.3,3.40609671]
[1732286360450,0.01,3287.5,3286.4,3.34060967]
[1732286360693,0.00860005,3287.6,3286.8,3.0]
[1732286360849,0.8293,3287.7,3287.2,3.0]
[1732286361061,0.8293,3287.7,3287.2,3.64060967]
[1732286361243,0.7756,3288.1,3287.6,3.0]
[1732286362040,0.7856,3288.1,3287.2,3.0]
[1732286362385,0.00860005,3287.9,3287.3,0.64060967]
[1732286362587,0.00860005,3287.9,3287.2,3.0]
[1732286362944,0.79420005,3288.1,3287.2,3.0]
[1732286363144,0.79420005,3288.1,3287.6,3.0]
[1732286363340,0.01,3288.1,3287.6,3.0]
[1732286364087,0.00860005,3287.7,3287.2,3.0]
[1732286364255,0.04662419,3287.9,3287.2,3.0]
[1732286364461,0.04662332,3287.9,3287.2,3.0]
[1732286364645,0.765,3288.0,3287.2,3.0]
[1732286364856,0.765,3288.0,3287.2,3.64060967]
[1732286365194,0.775,3288.0,3287.6,3.0]
[1732286365343,0.765,3288.0,3287.6,3.0]
[1732286365814,0.84890005,3288.5,3287.6,3.0]
[1732286365952,0.8303,3288.5,3288.0,3.0]
[1732286366653,0.8176,3289.4,3289.0,8.94]
[1732286366872,0.8076,3289.4,3289.1,0.75157945]
[1732286367107,0.8176,3289.4,3288.9,3.0]
[1732286367269,0.01,3289.9,3288.9,3.0]
[1732286367471,0.8076,3289.8,3289.2,3.40609671]
[1732286367696,0.8076,3289.8,3289.3,3.0]
[1732286367899,0.8076,3290.3,3289.7,3.40609671]
[1732286368068,0.8076,3290.3,3289.8,3.0]
[1732286368511,0.01,3290.7,3289.8,3.0]
[1732286368697,0.8176,3290.7,3290.1,3.40609671]
[1732286369224,0.8176,3290.7,3289.8,3.0]
[1732286369225,0.01,3290.3,3289.8,3.0]
[1732286370595,0.8176,3290.7,3289.8,3.64060967]
[1732286370808,0.8076,3290.7,3290.2,3.0]
[1732286371008,0.01,3291.1,3290.2,3.0]
[1732286371309,0.8089,3291.2,3290.5,3.40609671]
[1732286371511,0.01,3290.9,3290.6,3.0]
[1732286371673,0.01,3291.1,3290.6,3.0]
[1732286372072,0.01,3290.9,3290.6,3.0]
[1732286372489,0.01,3290.9,3290.2,3.0]
[1732286372683,0.01860005,3290.9,3290.3,0.64060967]
[1732286372894,0.01,3290.9,3289.8,3.0]
[1732286373081,0.00860005,3291.1,3290.2,3.0]
[1732286373082,0.01,3291.1,3290.2,3.0]
[1732286373413,0.01,3290.9,3290.2,3.0]
[1732286374119,0.00860005,3290.4,3289.8,3.0]
[1732286374321,0.7628,3290.3,3289.3,3.40609671]
[1732286374511,0.01,3290.4,3289.7,3.40609671]
[1732286374688,3.07614192,3291.5,3289.7,3.40609671]
[1732286374689,0.01,3290.6,3289.7,3.40609671]
[1732286375530,0.01,3290.9,3290.2,3.0]
[1732286376026,0.01,3291.0,3290.2,3.0]
[1732286376321,0.01,3291.0,3290.2,3.64060967]
[1732286376490,0.7524,3291.1,3290.2,3.64060967]
[1732286376999,0.7624,3291.1,3290.2,3.64060967]
[1732286377197,0.01,3291.0,3290.2,3.64060967]
[1732286378222,0.7524,3291.1,3290.2,3.64060967]
[1732286378385,0.7524,3291.1,3290.3,0.64696978]
[1732286378841,0.1480547,3291.6,3290.9,3.40609671]
[1732286378986,0.1580547,3291.6,3291.0,3.0]
[1732286379186,0.01,3291.2,3290.5,3.40609671]
[1732286379386,0.01,3291.2,3290.6,3.0]
[1732286380027,0.01,3291.5,3290.6,3.64060967]
[1732286380231,0.1480547,3291.6,3291.0,3.0]
[1732286380520,0.1480547,3291.6,3291.1,0.3031]
[1732286380694,0.1580547,3291.6,3291.1,0.3031]
[1732286380883,0.1480547,3291.6,3291.1,0.3031]
[1732286381085,0.1480547,3291.6,3291.1,0.97401967]
[1732286381285,0.1480547,3291.6,3291.4,3.3031]
[1732286381826,0.1480547,3291.6,3291.5,0.55]
[1732286382026,0.7989,3292.3,3292.2,11.7919453]
[1732286382226,0.01,3292.7,3292.3,3.0]
[1732286382528,0.01,3292.7,3292.1,3.0]
[1732286382957,0.00860005,3292.9,3292.1,3.0]
[1732286382958,0.01,3292.5,3292.1,3.0]
[1732286383158,0.01,3292.5,3291.5,0.55]
[1732286383159,0.01,3292.5,3291.7,3.3031]
[1732286383344,0.01,3292.5,3291.8,0.55]
[1732286384031,0.01,3292.8,3292.1,3.70919671]
[1732286384365,0.01,3292.6,3292.2,3.0]
[1732286384575,0.01,3292.5,3291.8,3.55]
[1732286385129,0.01,3292.5,3292.2,3.0]
[1732286385342,0.00860005,3292.9,3292.2,3.0]
[1732286385559,0.8011,3293.0,3292.2,3.0]
[1732286385755,0.8011,3293.4,3292.6,3.0]
[1732286387852,0.01,3294.2,3293.8,3.0]
[1732286388389,0.01,3294.4,3293.8,3.0]
[1732286389058,0.01,3294.3,3293.8,3.0]
[1732286389461,0.7887,3294.7,3293.8,3.0]
[1732286389657,0.01,3294.3,3293.8,3.0]
[1732286390071,0.7887,3294.7,3293.8,3.0]
[1732286390247,0.01,3294.3,3293.8,3.0]
[1732286390450,0.7787,3294.7,3293.8,3.0]
[1732286390886,0.1480547,3294.8,3294.2,3.55]
[1732286391386,0.1480547,3294.8,3287.8,1.59804991]
[1732286391387,0.01,3291.0,3287.8,1.59804991]
[1732286391602,0.01,3291.0,3286.5,5.36]
[1732286391603,0.01,3290.7,3289.3,3.40609671]
[1732286391748,0.00860005,3290.9,3289.8,3.40609671]
[1732286391948,0.01,3292.2,3290.2,3.40609671]
[1732286392252,0.01,3292.1,3290.7,3.40609671]
[1732286392451,0.01,3292.1,3290.8,0.03037712]
[1732286392872,0.01,3291.7,3290.4,0.03037906]
[1732286393272,0.01,3291.4,3290.4,0.03037906]
[1732286393469,0.01,3291.4,3290.3,3.40609671]
[1732286393753,0.01,3291.7,3290.7,3.40609671]
[1732286393987,0.01,3291.7,3290.8,0.03037853]
[1732286394364,0.01,3291.7,3290.8,3.03037853]
[1732286394552,0.01,3291.7,3290.4,3.0]
[1732286394755,0.01,3291.7,3290.5,0.67099123]
[1732286394985,0.7916,3291.6,3290.5,0.03038156]
[1732286395453,0.7916,3291.6,3290.6,3.92299285]
[1732286395658,0.7916,3292.1,3290.8,0.7694]
[1732286395965,0.7916,3292.1,3291.2,3.0]
[1732286396292,0.7916,3292.1,3291.3,0.0303748]
[1732286396505,0.7916,3292.1,3291.4,0.30303748]
[1732286397057,0.7916,3292.1,3291.5,0.03037476]
[1732286397392,0.7916,3292.1,3291.4,0.30303748]
[1732286397987,0.8288,3292.7,3291.7,3.0]
[1732286398163,0.8288,3292.7,3291.8,0.03037183]
[1732286398560,0.7751,3293.3,3292.2,3.0]
[1732286398761,0.01,3293.2,3292.2,3.33036642]
[1732286399259,0.7751,3293.3,3292.2,3.33036642]
[1732286399862,0.01,3293.2,3292.2,3.33036642]
[1732286400058,0.7751,3293.3,3292.3,0.68454197]
[1732286400371,0.01,3293.2,3292.4,0.03036569]
[1732286401099,0.7851,3293.3,3292.4,0.03036569]
[1732286401301,0.7851,3293.3,3292.4,0.33340317]
[1732286401503,0.03795632,3293.2,3292.4,0.30303748]
[1732286401821,0.7851,3293.3,3292.2,3.03036505]
[1732286401822,0.7851,3293.3,3292.2,0.03036505]
[1732286402178,0.7851,3293.3,3292.2,3.03036505]
[1732286402377,0.7851,3293.3,3292.3,0.69533579]
[1732286402685,0.7851,3293.3,3292.3,0.7257012]
[1732286403022,0.7851,3293.3,3291.7,3.7576]
[1732286403223,0.01,3293.0,3291.8,0.03036855]
[1732286403385,0.8158,3292.6,3291.2,0.8017]
[1732286403579,0.8158,3292.6,3291.6,0.03037094]
[1732286403891,0.8158,3292.6,3291.6,3.95336379]
[1732286404090,0.8158,3292.6,3291.7,0.49395359]
[1732286404320,0.8158,3292.6,3291.8,0.0303703]
[1732286404525,0.8224,3293.1,3292.1,3.92299285]
[1732286404737,0.8224,3293.1,3292.2,3.42266601]
[1732286405026,0.8224,3293.1,3292.2,4.17846601]
[1732286405197,0.01,3293.9,3292.3,0.55]
[1732286405520,0.8224,3293.8,3292.7,3.0]
[1732286405684,0.01,3293.7,3292.8,0.03036109]
[1732286405888,0.8224,3293.8,3292.8,0.03036109]
[1732286405889,0.8124,3293.8,3292.8,0.03036109]
[1732286406108,0.8124,3293.8,3293.2,3.0]
[1732286406308,0.01,3294.3,3293.2,3.0]
[1732286406508,0.01,3294.1,3293.3,0.03035698]
[1732286406712,0.01,3294.3,3293.3,0.03035698]
[1732286406917,0.01,3294.3,3293.3,0.72569196]
[1732286407934,0.01,3294.5,3293.3,0.72569196]
[1732286408138,0.01,3294.2,3293.3,0.72569196]
[1732286408310,0.01,3294.2,3293.4,0.3725692]
[1732286408696,0.01,3294.2,3293.3,0.03035616]
[1732286408908,0.01,3294.0,3292.8,0.03035699]
[1732286409135,0.01,3294.0,3292.8,3.0]
[1732286409437,0.8034,3293.9,3292.9,0.72265792]
[1732286409622,0.8134,3294.5,3293.3,3.8285]
[1732286409935,0.8134,3294.5,3293.4,0.03035616]
[1732286410853,0.01,3294.2,3293.4,0.03035616]
[1732286411045,0.01,3294.2,3293.4,0.72569106]
[1732286411195,0.8134,3294.5,3293.4,0.72569106]
[1732286411509,0.01,3294.3,3293.4,0.72569106]
[1732286411937,0.01,3294.2,3293.4,0.6953349]
[1732286412102,0.01,3294.2,3293.0,1.0739]
[1732286412322,0.01,3293.9,3292.9,0.03035779]
[1732286412517,0.01,3293.7,3292.8,0.03036023]
[1732286412716,0.7603,3293.6,3292.6,0.03036115]
[1732286413131,0.7603,3293.6,3292.7,3.92299285]
[1732286413306,0.8243,3294.1,3292.8,3.03035968]
[1732286413510,0.8243,3294.1,3292.9,0.56497016]
[1732286413707,0.8243,3294.1,3293.0,0.03035716]
[1732286414437,0.01,3293.6,3293.0,0.03035716]
[1732286414618,0.01,3293.6,3292.4,0.0303607]
[1732286414821,0.8264,3293.5,3292.6,3.39136402]
[1732286415006,0.8264,3293.5,3292.7,0.36949848]
[1732286415206,0.8264,3293.5,3292.7,0.03036208]
[1732286415837,0.8264,3293.5,3292.7,3.03036208]
[1732286416808,0.01,3293.4,3292.7,0.03036208]
[1732286417051,0.01,3293.4,3292.2,3.39136402]
[1732286417052,0.01,3293.4,3292.3,3.03036216]
[1732286417254,0.04795788,3293.4,3292.3,0.36949856]
[1732286417458,0.04795788,3293.4,3292.3,0.03036216]
[1732286417459,0.01,3293.4,3292.3,0.03036216]
[1732286417776,0.04795788,3293.4,3292.0,0.0303663]
[1732286418207,0.01,3293.4,3292.6,3.39136402]
[1732286418411,0.8264,3293.5,3292.7,3.36950141]
[1732286419152,0.01,3293.4,3292.7,3.36950141]
[1732286419310,0.8264,3293.5,3292.7,3.36950141]
[1732286419311,0.8264,3293.5,3292.7,0.36950141]
[1732286419513,0.8264,3293.5,3292.8,0.37608654]
[1732286420215,0.04795292,3293.4,3292.3,3.03036233]
[1732286420547,0.8364,3293.5,3292.7,3.0]
[1732286420708,0.8264,3293.5,3292.8,0.03036071]
[1732286420906,0.8264,3293.5,3292.9,0.30303607]
[1732286421151,0.01,3294.1,3293.0,3.42172464]
[1732286421454,0.01,3294.3,3293.1,3.0]
[1732286421758,0.01,3294.1,3293.2,0.64217246]
[1732286421906,0.01,3294.3,3293.2,0.64217246]
[1732286422106,0.01,3294.5,3293.3,0.39761159]
[1732286422366,0.01,3294.2,3293.5,3.0]
[1732286422528,0.01,3294.5,3293.6,0.03035382]
[1732286422938,0.01,3294.2,3293.6,0.03035382]
[1732286423253,0.1480547,3294.8,3293.8,3.39136402]
[1732286423452,0.01,3294.7,3293.9,3.03035139]
[1732286423827,0.1480547,3294.8,3293.9,3.03035139]
[1732286424015,0.01,3294.7,3294.0,0.64217154]
[1732286424214,0.8253,3294.6,3294.1,0.60714]
[1732286424462,0.8253,3294.6,3294.5,0.60707]
[1732286428766,0.4682,3294.6,3294.5,0.60707]
[1732286428922,0.01,3295.2,3295.1,0.60696]
[1732286429254,0.01,3295.4,3295.3,0.60692]
[1732286430715,0.01,3295.2,3294.7,0.60703]
[1732286430956,0.01,3295.2,3295.1,0.60696]
[1732286431329,0.01,3295.2,3294.9,0.60698]
[1732286431636,0.01,3294.8,3294.7,0.60703]
[1732286431957,0.8124,3294.8,3294.7,0.60703]
[1732286432471,4.4132186,3296.5,3296.1,0.60676]
[1732286432751,0.7993,3296.3,3295.9,0.60681]
[1732286432955,0.83722801,3296.2,3295.6,0.60686]
[1732286433126,0.83722801,3296.2,3294.8,0.63735198]
[1732286433127,0.83722801,3296.2,3295.9,0.60681]
[1732286433328,0.7993,3296.2,3296.1,0.60677]
[1732286434573,0.7993,3296.2,3295.2,0.03034063]
[1732286434574,0.7993,3296.2,3295.7,0.60685]
[1732286434729,0.7519,3296.0,3295.8,0.60682]
[1732286435216,0.7519,3296.0,3295.9,0.60681]
[1732286437061,7.44123584,3297.3,3296.4,0.6067]
[1732286437062,3.82724,3297.1,3296.4,0.6067]
[1732286437259,0.7942,3297.1,3297.0,0.60661]
[1732286438772,0.03791472,3297.9,3297.7,0.60648]
[1732286439659,0.1480547,3298.1,3297.9,0.60644]
[1732286440383,0.03790639,3298.0,3297.8,0.60646]
[1732286441175,0.03790639,3298.0,3297.6,0.60649]
[1732286441176,0.03790639,3298.0,3297.7,0.60648]
[1732286441488,0.03790639,3298.0,3297.4,0.60653]
[1732286441783,0.7895,3297.9,3297.8,0.68646]
[1732286444147,0.7895,3297.9,3297.8,0.08]
[1732286444406,0.7895,3297.9,3297.8,0.68646]
[1732286445409,0.1480547,3298.1,3298.0,0.60642]
[1732286445702,3.04083,3299.5,3298.6,0.60631]
[1732286445703,0.03790195,3299.4,3298.6,0.60631]
[1732286446006,0.03789665,3299.3,3297.9,0.60644]
[1732286446212,0.03789665,3299.3,3299.0,0.60624]
[1732286446502,0.79549397,3299.5,3299.1,0.60622]
[1732286446661,0.0378924,3299.4,3299.0,0.60622]
[1732286447088,0.0378924,3299.4,3298.8,0.60627]
[1732286447284,0.0378924,3299.4,3298.1,0.6064]
[1732286447285,0.0378924,3299.4,3299.1,0.60622]
[1732286447487,0.0378924,3299.4,3299.0,0.60622]
[1732286447695,0.0378924,3299.4,3299.1,0.60622]
[1732286448461,0.0378924,3299.4,3299.0,0.60623]
[1732286449001,0.0378924,3299.4,3299.1,0.60622]
[1732286449160,0.0378924,3299.4,3299.2,0.6062]
[1732286449361,0.0378924,3299.4,3299.3,0.60618]
[1732286449706,0.03789029,3299.4,3299.3,0.60618]
[1732286450019,0.03789029,3299.4,3299.0,0.60623]
[1732286450303,0.03789029,3299.4,3299.1,0.60621]
[1732286450504,0.03789029,3299.4,3299.2,0.6062]
[1732286450673,0.7576,3299.5,3298.3,1.39746]
[1732286450674,0.7576,3299.5,3298.6,0.60631]
[1732286450864,0.03788864,3299.4,3298.3,1.42777088]
[1732286451064,0.03788864,3299.4,3299.3,0.60618]
[1732286452106,0.7576,3299.5,3299.4,0.60617]
[1732286452398,0.7862,3300.0,3299.9,0.60606]
[1732286452709,0.7862,3300.0,3299.4,0.60616]
[1732286453000,0.7862,3300.0,3298.3,0.7911]
[1732286453001,0.0378881,3299.9,3298.5,0.03031048]
[1732286453217,0.0378881,3299.9,3299.2,0.60619]
[1732286453218,3.0682881,3299.9,3299.2,0.60619]
[1732286453427,3.03062,3299.7,3299.0,0.60624]
[1732286453729,3.03062,3299.7,3298.8,0.60627]
[1732286453730,0.81009097,3299.6,3298.8,0.60627]
[1732286453878,3.0312,3299.1,3298.4,0.60634]
[1732286454080,0.03789772,3299.0,3298.6,0.60631]
[1732286454278,0.7762,3299.3,3299.0,0.60623]
[1732286454475,0.7762,3299.3,3298.9,0.60626]
[1732286454727,0.03789305,3299.2,3298.7,0.60629]
[1732286454891,3.03123,3299.0,3298.4,0.60635]
[1732286455080,1.17242158,3298.9,3298.5,0.60632]
[1732286455302,0.81429858,3298.9,3297.8,0.08]
[1732286455685,4.39560858,3298.9,3298.8,0.05]
[1732286455886,4.78016344,3298.9,3298.8,0.05]
[1732286456198,1.74885344,3298.9,3298.8,0.05]
[1732286456525,1.71095486,3298.9,3298.8,0.05]
[1732286456831,1.19885518,3298.9,3298.8,0.05]
[1732286457415,4.39561032,3298.9,3298.8,0.05]
[1732286458581,3.84561032,3298.9,3298.8,0.05]
[1732286459718,6.85561032,3298.9,3298.8,0.05]
[1732286459932,3.80173,3297.9,3297.8,0.08]
[1732286460220,4.52302927,3297.9,3297.8,0.08]
[1732286460577,1.49079927,3297.9,3297.8,0.08]
[1732286460800,1.452886,3297.9,3297.8,0.08]
[1732286461756,0.7695,3297.9,3297.8,0.08]
[1732286462434,0.80741005,3297.9,3297.8,0.08]
[1732286462596,3.83964005,3297.9,3297.8,0.08]
[1732286463207,3.84964005,3297.9,3297.8,0.08]
[1732286463455,7.40964005,3297.9,3297.8,0.08]
[1732286463599,3.03361,3296.4,3295.4,0.7807]
[1732286463798,3.86412816,3296.3,3295.7,0.60684]
[1732286464049,3.0339,3296.1,3295.5,0.60688]
[1732286464217,0.03793216,3296.0,3295.5,0.60688]
[1732286464543,0.03793216,3296.0,3294.8,0.7807]
[1732286464544,0.03793216,3296.0,3295.6,0.60686]
[1732286464834,0.38641282,3296.2,3295.6,0.60686]
[1732286464835,0.42434571,3296.2,3295.7,0.60684]
[1732286465144,0.7925,3296.3,3296.2,0.60675]
[1732286465445,0.7754,3296.8,3296.6,0.60668]
[1732286465598,0.03792188,3296.7,3296.2,0.60675]
[1732286465803,3.03342,3296.6,3295.7,0.60684]
[1732286466030,3.03405,3296.0,3294.9,0.7891]
[1732286466230,0.7754,3296.4,3294.9,0.7891]
[1732286466231,3.03436,3295.6,3294.9,0.60698]
[1732286466443,0.34137456,3295.5,3294.7,0.60703]
[1732286466622,0.34137456,3295.5,3293.7,3.41494438]
[1732286466623,0.303436,3295.5,3294.2,0.7964]
[1732286466943,0.7632,3296.2,3295.7,0.60685]
[1732286467114,0.7632,3296.2,3296.1,0.60677]
[1732286467316,0.7632,3296.2,3296.0,0.60679]
[1732286467517,0.7847,3296.6,3296.5,0.6067]
[1732286467731,0.82262239,3297.2,3296.7,0.60666]
[1732286467931,0.82262239,3297.2,3296.1,0.7579]
[1732286467932,0.03791929,3297.1,3296.2,0.60675]
[1732286468105,0.7847,3297.2,3297.0,0.60661]
[1732286468321,0.03791679,3297.6,3297.1,0.60659]
[1732286468551,0.03791606,3297.6,3296.4,0.360673]
[1732286468749,0.03791606,3297.6,3296.3,1.21348]
[1732286469060,0.03791606,3297.6,3296.1,4.17282927]
[1732286469061,0.037917,3297.6,3296.4,0.55]
[1732286469269,0.7847,3297.7,3297.6,0.6065]
[1732286469431,0.7649,3298.1,3297.7,0.60648]
[1732286469635,0.7649,3298.1,3297.8,0.60646]
[1732286469835,0.7649,3298.1,3297.6,0.6065]
[1732286470020,0.7649,3298.1,3297.7,0.60647]
[1732286470220,0.8245,3298.7,3296.8,0.55]
[1732286470548,0.86240802,3298.7,3298.6,0.60631]
[1732286470759,0.8245,3299.4,3298.9,0.60626]
[1732286470956,0.8245,3299.4,3298.5,0.60632]
[1732286471140,0.03789481,3299.8,3298.4,1.15635]
[1732286471335,0.86239011,3300.0,3299.5,0.60613]
[1732286471553,0.86239011,3300.0,3298.5,0.60633]
[1732286471554,0.03788637,3299.9,3298.5,0.60633]
[1732286471734,3.03048,3299.8,3299.1,0.60622]
[1732286471974,0.03788637,3299.9,3299.1,0.60621]
[1732286471975,0.03789167,3299.7,3299.1,0.60621]
[1732286472147,0.34472284,3299.7,3299.1,0.60621]